Workbook

Sheet младшие сах
A1: Примерное 2-х недельное меню для учащихся 7-11 лет, больных сахарным диабетом
A3: № рец. | B3: Наименование блюд | F3: Выход | H3: Белки, г | I3: Жиры, г | J3: Углеводы, г | L3: Калорийность, ккал
A4: 1 неделя
A5: 1 ДЕНЬ
A6: ЗАВТРАК
A7: № 338 Дели 2015 г | B7: ФРУКТ (апельсин) | F7: 120 | H7: 0.480 | I7: 0.480 | J7: 11.760 | L7: 53
A8: № 14/2015 г Дели | B8: МАСЛО СЛИВОЧНОЕ (ПОРЦИЯМИ) | F8: 10 | H8: 7.300 | I8: 7.550 | J8: 0.080 | L8: 97
A9: №173/2015г,Дели | B9: КАША ВЯЗКАЯ МОЛОЧНАЯ ИЗ ГРЕЧНЕВОЙ КРУПЫ С МАСЛОМ (без сахара) | F9: 150 /5 | H9: 5.983 | I9: 7.613 | J9: 52.586 | L9: 302
A10: №376 Дели 2015 | B10: ЧАЙ без сахара | F10: 200 | H10: 0.100 | I10: 0.250 | J10: 0.020 | L10: 3
B11: ХЛЕБ РЖАНОЙ | F11: 25 | H11: 1.250 | I11: 0.250 | J11: 11.250 | L11: 52
A12: Итого: | F12: 510 | H12: =H11+H10+H9+H8+H7 -> 15.11 | I12: =I11+I10+I9+I8+I7 -> 16.143 | J12: =J11+J10+J9+J8+J7 -> 75.696 | L12: =L11+L10+L9+L8+L7 -> 507
A13: ОБЕД
A14: № 338 Дели 2015 г | B14: ФРУКТ (яблоко зеленое) | F14: 120 | H14: 0.480 | I14: 0.480 | J14: 11.760 | L14: 53
A15: №45/2015г,Дели | B15: САЛАТ ИЗ БЕЛОКОЧАННОЙ КАПУСТЫ (капуста,морковь,без сахара,м/раст) | F15: 60 | H15: 0.931 | I15: 3.051 | J15: 9.105 | L15: 68
A16: №102/2015г,Дели | B16: СУП КАРТОФЕЛЬНЫЙ С БОБОВЫМИ , МЯСНЫМИ ФРИКАДЕЛЬКАМИ | F16: 200 /10 | H16: 3.403 | I16: 3.237 | J16: 21.625 | L16: 129
A17: №266/2015г,Дели | B17: БИФШТЕКС РУБЛЕНЫЙ | F17: 90г | H17: 13.755 | I17: 13.345 | J17: 8.879 | L17: 211
A18: № 541/2004 год | B18: РАГУ ОВОЩНОЕ (без томатной пасты) | F18: 150 | H18: 2.803 | I18: 4.046 | J18: 16.807 | L18: 115
A19: № 705 Сбор. рецеп. 2004 г | B19: НАПИТОК ИЗ ШИПОВНИКА без сахара | F19: 200 | H19: 0.210 | I19: 0.050 | J19: 15.020 | L19: 61
B20: ХЛЕБ РЖАНОЙ | F20: 40 | H20: 2.000 | I20: 0.400 | J20: 18.000 | L20: 84
A21: Итого: | F21: 860 | H21: =H14+H15+H16+H17+H18+H19+H20 -> 23.582 | I21: =I14+I15+I17+I16+I18+I19+I20 -> 24.609 | J21: =J20+J19+J18+J17+J16+J15+J14 -> 101.196 | L21: 690
B22: Всего: | F22: 1370 | H22: =H21+H12 -> 38.695 | I22: =I21+I12 -> 40.752 | J22: =J21+J12 -> 176.892 | L22: =L21+L12 -> 1197
A23: 2 ДЕНЬ
A24: ЗАВТРАК
A25: № 338 Дели 2015 г | B25: ФРУКТ (мандарин) | F25: 120 | H25: 0.480 | I25: 0.480 | J25: 11.760 | L25: 53
A26: 15/2015г Дели | B26: СЫР ПОРЦИЯМИ 10 г | F26: 10 | H26: 6.330 | I26: 6.266 | J26: 0.4 | L26: 83
A27: №173/2015г,Дели | B27: КАША ВЯЗКАЯ МОЛОЧНАЯ ИЗ ПШЁННОЙ КРУПЫ С МАСЛОМ (без сахара) | F27: 150/5 | H27: 6.703 | I27: 8.788 | J27: 33.069 | L27: 238
A28: №377/2015г,Дели | B28: ЧАЙ С ЛИМОНОМ без сахара | F28: 200 | H28: 0.320 | I28: 0.140 | J28: 20.440 | L28: 84
B29: ХЛЕБ РЖАНОЙ | F29: 25 | H29: 1.250 | I29: 0.250 | J29: 11.250 | L29: 52
A30: Итого: | F30: 510 | H30: =H29+H28+H27+H26+H25 -> 15.083 | I30: =I29+I28+I27+I26+I25 -> 15.924 | J30: =J29+J28+J27+J26+J25 -> 76.919 | L30: =L29+L28+L27+L26+L25 -> 510
A31: ОБЕД
A32: №52/2015г,Дели | B32: САЛАТ ИЗ СВЕКЛЫ ОТВАРНОЙ (с маслом) | F32: 60 | H32: 0.455 | I32: 0.653 | J32: 5.016 | L32: 28
A33: №99/2015г,Дели | B33: СУП ИЗ ОВОЩЕЙ С МЯСНЫМИ ФРИКАДЕЛЬКАМИ | F33: 200 /10 | H33: 2.970 | I33: 3.763 | J33: 20.848 | L33: 126
A34: №291/2015г,Дели | B34: ПЛОВ ИЗ ПТИЦЫ | F34: 50/150 | H34: 16.838 | I34: 18.996 | J34: 32.639 | L34: 369
A35: №348/2015г,Дели | B35: КОМПОТ ИЗ СУХОФРУКТОВ | F35: 200 | H35: 0.440 | I35: 0.020 | J35: 29.760 | L35: 121
B36: ХЛЕБ РЖАНОЙ | F36: 40 | H36: 2.000 | I36: 0.400 | J36: 18.000 | L36: 84
A37: Итого: | F37: 710 | H37: =H36+H35+H34+H33+H32 -> 22.703 | I37: =I36+I35+I34+I33+I32 -> 23.832 | J37: =J36+J35+J34+J33+J32 -> 106.263 | L37: =L36+L35+L34+L33+L32 -> 728
B38: Всего: | F38: 1220 | H38: =H37+H30 -> 37.786 | I38: =I37+I30 -> 39.756 | J38: =J37+J30 -> 183.182 | L38: =L37+L30 -> 1238
A39: 3 ДЕНЬ
A40: ЗАВТРАК
A41: № 338 Дели 2015 г | B41: ФРУКТ (Банан) | F41: 120 | H41: 0.480 | I41: 0.480 | J41: 11.760 | L41: 53
A42: №3/2015г,Дели | B42: БУТЕРБРОД С СЫРОМ, МАСЛОМ | F42: 25/10/10 | H42: 6.940 | I42: 8.160 | J42: 11.330 | L42: 147
A43: №173/2015г,Дели | B43: КАША ВЯЗКАЯ МОЛОЧНАЯ ИЗ ГЕРКУЛЕСОВОЙ КРУПЫ С МАСЛОМ | F43: 150/5 | H43: 6.349 | I43: 6.796 | J43: 28.525 | L43: 201
A44: №378/2015г,Дели | B44: ЧАЙ С МОЛОКОМ без сахара | F44: 200 | H44: 0.440 | I44: 0.020 | J44: 19.060 | L44: 78
B45: ХЛЕБ РЖАНОЙ | F45: 25 | H45: 1.250 | I45: 0.250 | J45: 11.250 | L45: 52
A46: Итого: | F46: 545 | H46: =H45+H44+H43+H42+H41 -> 15.459 | I46: =I45+I44+I43+I42+I41 -> 15.706 | J46: =J45+J44+J43+J42+J41 -> 81.925 | L46: =L45+L44+L43+L42+L41 -> 531
A47: ОБЕД
A48: № 338 Дели 2015 г | B48: ФРУКТ( Груша) | F48: 120 | H48: 0.480 | I48: 0.480 | J48: 11.760 | L48: 53
A49: № 49 Сбор. рецеп. 2004 г | B49: САЛАТ ИЗ МОРКОВИ С ЯБЛОКАМИ | F49: 60 | H49: 0.594 | I49: 0.084 | J49: 5.272 | L49: 24
A50: №95/2015г,Дели | B50: СУП КРЕСТЬЯНСКИЙ С КРУПОЙ | F50: 200г | H50: 1.800 | I50: 4.288 | J50: 11.944 | L50: 94
A51: №250/2015г,Дели | B51: БЕФСТРОГАНОВ | F51: 50/50 | H51: 15.790 | I51: 18.175 | J51: 5.620 | L51: 249
A52: №136/2015г,Дели | B52: ОВОЩИ ПРИПУЩЕННЫЕ | F52: 150 | H52: 5.105 | I52: 4.800 | J52: 36.5 | L52: 209
A53: № 631 Сбор. рецеп. 2004 г | B53: КОМПОТ ИЗ ЯБЛОК | F53: 200 | H53: 0.440 | I53: 0.020 | J53: 29.760 | L53: 121
B54: ХЛЕБ РЖАНОЙ | F54: 40 | H54: 2.000 | I54: 0.400 | J54: 18.000 | L54: 84
A55: Итого: | F55: 870 | H55: =H48+H49+H50+H51+H52+H53+H54 -> 26.209 | I55: =I48+I49+I50+I51+I52+I53+I54 -> 28.247 | J55: =J48+J49+J50+J51+J52+J53+J54 -> 118.856 | L55: =L48+L49+L50+L51+L52+L53+L54 -> 834
B56: Всего: | F56: 1415 | H56: =H55+H46 -> 41.668 | I56: =I55+I46 -> 43.953 | J56: =J55+J46 -> 200.781 | L56: =L55+L46 -> 1365
A57: 4 ДЕНЬ
A58: ЗАВТРАК
A59: № 338 Дели 2015 г | B59: ФРУКТ( апельсин) | F59: 120 | H59: 0.480 | I59: 0.480 | J59: 11.760 | L59: 53
A60: № 14/2015 г Дели | B60: МАСЛО СЛИВОЧНОЕ (ПОРЦИЯМИ) | F60: 10 | H60: 7.300 | I60: 7.550 | J60: 0.080 | L60: 97
A61: №173/2015г,Дели | B61: КАША ВЯЗКАЯ МОЛОЧНАЯ ИЗ ГРЕЧНЕВОЙ КРУПЫ С МАСЛОМ (без сахара) | F61: 150 /5 | H61: 5.953 | I61: 7.613 | J61: 52.586 | L61: 302
A62: №376 Дели 2015 | B62: ЧАЙ без сахара | F62: 200 | H62: 0.100 | I62: 0.250 | J62: 0.020 | L62: 35
B63: ХЛЕБ РЖАНОЙ | F63: 25 | H63: 1.250 | I63: 0.250 | J63: 11.250 | L63: 52
A64: Итого: | F64: 510 | H64: =H63+H62+H61+H60+H59 -> 15.083 | I64: =I63+I62+I61+I60+I59 -> 16.14 | J64: =J63+J62+J61+J60+J59 -> 75.696 | L64: =L63+L62+L61+L60+L59 -> 539
A65: ОБЕД
A66: №45/2015г,Дели | B66: САЛАТ ИЗ БЕЛОКОЧАННОЙ КАПУСТЫ (капуста,морковь,без сахара,м/раст) | F66: 60 | H66: 0.931 | I66: 3.051 | J66: 9.105 | L66: 68
A67: №96/2015г,Дели | B67: РАССОЛЬНИК ЛЕНИНГРАДСКИЙ (картофель очищ.) | F67: 200 | H67: 2.285 | I67: 2.385 | J67: 16.925 | L67: 98
A68: №288/2015г,Дели | B68: ПТИЦА ОТВАРНАЯ | F68: 90 | H68: 14.397 | I68: 14.554 | J68: 6.580 | L68: 214
A69: №139/2015г,Дели | B69: КАПУСТА ТУШЕНАЯ | F69: 75 | H69: 1.785 | I69: 1.907 | J69: 12.040 | L69: 72
A70: № 216 Сбор.2004 | B70: КАРТОФЕЛЬ ТУШЁНЫЙ | F70: 75 | H70: 1.627 | I70: 1.530 | J70: 12.235 | L70: 69
A71: № 700 Сбор. рецеп. 2004 г | B71: НАПИТОК ИЗ ЗАМОРОЖЕННОЙ КЛЮКВЫ без сахара | F71: 200 | H71: 0.125 | I71: 0.050 | J71: 24.877 | L71: 100
B72: ХЛЕБ РЖАНОЙ | F72: 40 | H72: 2.000 | I72: 0.400 | J72: 18.000 | L72: 84
A73: Итого: | F73: 750 | H73: =H72+H71+H70+H69+H68+H67+H66 -> 23.150 | I73: =I72+I71+I70+I69+I68+I67+I66 -> 23.877 | J73: =J72+J71+J70+J69+J68+J67+J66 -> 99.762 | L73: =L72+L71+L70+L69+L68+L67+L66 -> 705
B74: Всего: | F74: 1260 | H74: =H73+H64 -> 38.233 | I74: =I73+I64 -> 40.020 | J74: =J73+J64 -> 175.458 | L74: =L73+L64 -> 1244
A75: 5 ДЕНЬ
A76: ЗАВТРАК
A77: № 338 Дели 2015 г | B77: ФРУКТ( мандарин) | F77: 120 | H77: 0.480 | I77: 0.480 | J77: 11.760 | L77: 53
A78: № 42 /1983 г № 15/2015г Дели | B78: СЫР ПОРЦИЯМИ | F78: 10 | H78: 6.330 | I78: 6.266 | J78: 0.4 | L78: 83
A79: №173/2015г,Дели | B79: КАША ВЯЗКАЯ МОЛОЧНАЯ ИЗ ПШЁННОЙ КРУПЫ С МАСЛОМ (без сахара) | F79: 150/5 | H79: 6.703 | I79: 8.788 | J79: 33.069 | L79: 238
A80: №377/2015г,Дели | B80: ЧАЙ С ЛИМОНОМ без сахара | F80: 200 | H80: 0.320 | I80: 0.140 | J80: 20.440 | L80: 84
B81: ХЛЕБ РЖАНОЙ | F81: 25 | H81: 1.250 | I81: 0.250 | J81: 11.250 | L81: 52
A82: Итого: | F82: 510 | H82: =H80+H81+H79+H78+H77 -> 15.083 | I82: =I81+I80+I79+I78+I77 -> 15.924 | J82: =J81+J80+J79+J78+J77 -> 76.919 | L82: =L81+L80+L79+L78+L77 -> 510
A83: ОБЕД
A84: № 338 Дели 2015 г | B84: ФРУКТ (ЯБЛОКО зеленое) | F84: 120 | H84: 0.480 | I84: 0.480 | J84: 11.760 | L84: 53
A85: № 62 Дели 2015 г | B85: САЛАТ ИЗ МОРКОВИ (без сахара) | F85: 60 | H85: 0.863 | I85: 3.051 | J85: 9.105 | L85: 68
A86: №88/2015г,Дели | B86: ЩИ ИЗ СВЕЖЕЙ КАПУСТЫ С КАРТОФЕЛЕМ СО СМЕТАНОЙ | F86: 200/5 | H86: 1.950 | I86: 2.950 | J86: 9.120 | L86: 71
A87: № 464 Сбор. рецеп. 2004 г | B87: ТЕФТЕЛИ ИЗ ГОВЯДИНЫ (паровые, без пшенич.муки, хлеба, сухарей) | F87: 90 | H87: 11.045 | I87: 11.953 | J87: 1.590 | L87: 158
A88: №302/2015г,Дели | B88: КАША ГРЕЧНЕВАЯ РАССЫПЧАТАЯ | F88: 150 | H88: 6.622 | I88: 5.399 | J88: 40.875 | L88: 239
A89: № 705 Сбор. рецеп. 2004 г | B89: НАПИТОК ИЗ ШИПОВНИКА без сахара | F89: 200 | H89: 0.210 | I89: 0.050 | J89: 15.020 | L89: 61
B90: ХЛЕБ РЖАНОЙ | F90: 40 | H90: 2.000 | I90: 0.400 | J90: 18.000 | L90: 84
A91: Итого: | F91: 865 | H91: =H84+H85+H86+H87+H88+H89+H90 -> 23.170 | I91: =I84+I85+I86+I87+I88+I89+I90 -> 24.283 | J91: =J84+J85+J86+J87+J88+J89+J90 -> 105.470 | L91: 733
E92: Всего: | F92: 1375 | H92: =H91+H82 -> 38.253 | I92: =I91+I82 -> 40.207 | J92: =J91+J82 -> 182.389 | K92: =K91+K82 -> 0.000 | L92: =L91+L82 -> 1243
A93: 6 ДЕНЬ
A94: ЗАВТРАК
A95: № 338 Дели 2015 г | B95: ФРУКТ (Груша) | F95: 120 | H95: 0.480 | I95: 0.480 | J95: 11.760 | L95: 53
A96: №3/2015г,Дели | B96: БУТЕРБРОД С СЫРОМ, МАСЛОМ (хлеб сельский) | F96: 25/10/10 | H96: 6.940 | I96: 8.160 | J96: 11.330 | L96: 147
A97: №173/2015г,Дели | B97: КАША ВЯЗКАЯ МОЛОЧНАЯ ИЗ ГЕРКУЛЕСОВОЙ КРУПЫ С МАСЛОМ (без сахара) | F97: 150/5 | H97: 6.349 | I97: 6.796 | J97: 28.525 | L97: 201
A98: №378/2015г,Дели | B98: ЧАЙ С МОЛОКОМ без сахара | F98: 200/15 | H98: 0.210 | I98: 0.050 | J98: 15.020 | L98: 61
B99: ХЛЕБ РЖАНОЙ | F99: 25 | H99: 1.250 | I99: 0.250 | J99: 11.250 | L99: 52
A100: Итого: | F100: 560 | H100: =H99+H98+H97+H96+H95 -> 15.229 | I100: =I99+I98+I97+I96+I95 -> 15.736 | J100: =J99+J98+J97+J96+J95 -> 77.885 | L100: =L99+L98+L97+L96+L95 -> 514
A101: ОБЕД
A102: №47/2015г,Дели | B102: САЛАТ ИЗ КВАШЕНОЙ КАПУСТЫ (без сахара) | F102: 60 | H102: 0.931 | I102: 3.051 | J102: 9.105 | L102: 68
A103: №99/2015г,Дели | B103: СУП ИЗ ОВОЩЕЙ С МЯСНЫМИ ФРИКАДЕЛЬКАМИ | F103: 200 /10 | H103: 2.970 | I103: 3.763 | J103: 20.848 | L103: 126
A104: № 268/2015г,Дели | B104: КОТЛЕТЫ ИЗ ГОВЯДИНЫ (без пшенич.муки,хлеба,сухарей) | F104: 90г | H104: 14.831 | I104: 14.359 | J104: 6.624 | L104: 214
A105: № 510/2015г,Дели | B105: КАША ПЕРЛОВАЯ ВЯЗКАЯ С МАСЛОМ | F105: 150/5 | H105: 3.086 | I105: 2.787 | J105: 21.691 | L105: 124
A106: №348/2015г,Дели | B106: КОМПОТ ИЗ ПЛОДОВ ИЛИ ЯГОД СУШЕНЫХ | F106: 200 | H106: 0.440 | I106: 0.020 | J106: 29.760 | L106: 121
B107: ХЛЕБ РЖАНОЙ | F107: 40 | H107: 2.000 | I107: 0.400 | J107: 18.000 | L107: 84
A108: Итого: | F108: 755 | H108: =H107+H106+H105+H104+H103+H102 -> 24.258 | I108: =I107+I106+I105+I104+I103+I102 -> 24.380 | J108: =J107+J106+J105+J104+J103+J102 -> 106.028 | L108: =L107+L106+L105+L104+L103+L102 -> 737
B109: Всего: | F109: 1315 | H109: =H108+H100 -> 39.487 | I109: =I108+I100 -> 40.116 | J109: =J108+J100 -> 183.913 | L109: =L108+L100 -> 1251
A110: 2 неделя
A111: 1 ДЕНЬ
A112: ЗАВТРАК
A113: № 338 Дели 2015 г | B113: ФРУКТ(Банан) | F113: 120 | H113: 0.480 | I113: 0.480 | J113: 11.760 | L113: 53
A114: № 14/2015 г Дели | B114: МАСЛО СЛИВОЧНОЕ (ПОРЦИЯМИ) | F114: 10 | H114: 7.300 | I114: 7.550 | J114: 0.080 | L114: 97
A115: №173/2015г,Дели | B115: КАША ВЯЗКАЯ МОЛОЧНАЯ ИЗ ГРЕЧНЕВОЙ КРУПЫ С МАСЛОМ (без сахара) | F115: 150 /5 | H115: 5.983 | I115: 7.613 | J115: 52.586 | L115: 302
A116: №376 Дели 2015 | B116: ЧАЙ без сахара | F116: 200 | H116: 0.100 | I116: 0.250 | J116: 0.020 | L116: 3
B117: ХЛЕБ РЖАНОЙ | F117: 25 | H117: 1.250 | I117: 0.250 | J117: 11.250 | L117: 52
A118: Итого: | F118: 510 | H118: =H117+H116+H115+H114+H113 -> 15.113 | I118: =I117+I116+I115+I114+I113 -> 16.14 | J118: =J117+J116+J115+J114+J113 -> 75.696 | L118: =L117+L116+L115+L114+L113 -> 507
A119: ОБЕД
A120: № 338 Дели 2015 г | B120: ФРУКТ(апельсин) | F120: 120 | H120: 0.480 | I120: 0.480 | J120: 11.760 | L120: 53
A121: №45/2015г,Дели | B121: САЛАТ ИЗ БЕЛОКОЧАННОЙ КАПУСТЫ(капуста,морковь,без сахара,м/раст) | F121: 60 | H121: 0.931 | I121: 3.051 | J121: 9.105 | L121: 68
A122: №96/2015г,Дели | B122: РАССОЛЬНИК ЛЕНИНГРАДСКИЙ | F122: 200 | H122: 2.285 | I122: 2.385 | J122: 16.925 | L122: 98
A123: № 464 Сбор. рецеп. 2004 г | B123: ТЕФТЕЛИ ИЗ ГОВЯДИНЫ (паровые, без пшенич.муки, хлеба, сухарей) | F123: 90 | H123: 11.045 | I123: 11.953 | J123: 1.590 | L123: 158
A124: №136/2015г,Дели | B124: ОВОЩИ ПРИПУЩЕННЫЕ | F124: 150 | H124: 5.105 | I124: 4.800 | J124: 36.5 | L124: 209
A125: № 631 Сбор. рецеп. 2004 г | B125: КОМПОТ ИЗ СУХОФРУКТОВ | F125: 200 | H125: 0.210 | I125: 0.050 | J125: 15.020 | L125: 61
B126: ХЛЕБ РЖАНОЙ | F126: 40 | H126: 2.000 | I126: 0.400 | J126: 18.000 | L126: 84
A127: Итого: | F127: 860 | H127: =H126+H125+H124+H123+H122+H121+H120 -> 22.056 | I127: =I120+I121+I122+I123+I124+I125+I126 -> 23.119 | J127: =J120+J121+J122+J123+J124+J125+J126 -> 108.90 | L127: 731
B128: Всего: | F128: 1370 | H128: =H127+H118 -> 37.169 | I128: =I127+I118 -> 39.262 | J128: =J127+J118 -> 184.596 | L128: =L127+L118 -> 1238
A129: 2 ДЕНЬ
A130: ЗАВТРАК
A131: № 338 Дели 2015 г | B131: ФРУКТ(мандарин) | F131: 120 | H131: 0.480 | I131: 0.480 | J131: 11.760 | L131: 53
A132: 15/2015г Дели | B132: СЫР ПОРЦИЯМИ | F132: 10 | H132: 6.330 | I132: 6.266 | J132: 0.4 | L132: 83
A133: №173/2015г,Дели | B133: КАША ВЯЗКАЯ МОЛОЧНАЯ ИЗ ПШЁННОЙ КРУПЫ С МАСЛОМ | F133: 150/5 | H133: 6.703 | I133: 8.788 | J133: 33.069 | L133: 238
A134: №377/2015г,Дели | B134: ЧАЙ С ЛИМОНОМ без сахара | F134: 200 | H134: 0.320 | I134: 0.140 | J134: 24.440 | L134: 100
B135: ХЛЕБ РЖАНОЙ | F135: 25 | H135: 1.250 | I135: 0.250 | J135: 11.250 | L135: 52
A136: Итого: | F136: 510 | H136: =H135+H134+H133+H132+H131 -> 15.083 | I136: =I135+I134+I133+I132+I131 -> 15.924 | J136: =J135+J134+J133+J132+J131 -> 80.919 | L136: =L135+L134+L133+L132+L131 -> 526
A137: ОБЕД
A138: №52/2015г,Дели | B138: САЛАТ ИЗ СВЕКЛЫ ОТВАРНОЙ | F138: 60 | H138: 0.455 | I138: 0.653 | J138: 5.016 | L138: 27
A139: №97/2015г,Дели | B139: СУП КАРТОФЕЛЬНЫЙ С ФРИКАДЕЛЬКАМИ МЯСНЫМИ | F139: 200 /10 | H139: 4.270 | I139: 4.620 | J139: 20.083 | L139: 137
A140: №294/2015г,Дели | B140: КОТЛЕТЫ РУБЛЕННЫЕ ИЗ ПТИЦЫ (без хлеба, сухарей) | F140: 90 | H140: 12.152 | I140: 15.440 | J140: 6.530 | L140: 213
A141: №302/2015г,Дели | B141: КАША ГРЕЧНЕВАЯ РАССЫПЧАТАЯ | F141: 150 | H141: 6.622 | I141: 5.399 | J141: 40.875 | L141: 239
A142: № 700 Сбор. рецеп. 2004 г | B142: НАПИТОК ИЗ ЗАМОРОЖЕННОЙ КЛЮКВЫ без сахара | F142: 200 | H142: 0.125 | I142: 0.050 | J142: 24.877 | L142: 100
B143: ХЛЕБ РЖАНОЙ | F143: 40 | H143: 2.000 | I143: 0.400 | J143: 18.000 | L143: 84
A144: Итого: | F144: 750 | H144: =H143+H142+H141+H140+H139+H138 -> 25.624 | I144: =I143+I142+I141+I140+I139+I138 -> 26.562 | J144: =J143+J142+J141+J140+J139+J138 -> 115.381 | L144: =L143+L142+L141+L140+L139+L138 -> 800
B145: Всего: | F145: 1260 | H145: =H144+H136 -> 40.707 | I145: =I144+I136 -> 42.486 | J145: =J144+J136 -> 196.300 | L145: =L144+L136 -> 1326
A146: 3 ДЕНЬ
A147: ЗАВТРАК
A148: № 338 Дели 2015 г | B148: ФРУКТ(Яблоко зеленое) | F148: 120 | H148: 0.480 | I148: 0.480 | J148: 11.760 | L148: 53
A149: №3/2015г,Дели | B149: БУТЕРБРОД С СЫРОМ, МАСЛОМ (хлеб ржаной) | F149: 25/10/10 | H149: 6.940 | I149: 8.160 | J149: 11.330 | L149: 147
A150: №173/2015г,Дели | B150: КАША ВЯЗКАЯ МОЛОЧНАЯ ИЗ ГЕРКУЛЕСОВОЙ КРУПЫ С МАСЛОМ (без сахара) | F150: 150/5 | H150: 6.349 | I150: 6.796 | J150: 28.525 | L150: 201
A151: №378/2015г,Дели | B151: ЧАЙ С МОЛОКОМ без сахара | F151: 200 | H151: 0.440 | I151: 0.020 | J151: 19.060 | L151: 78
B152: ХЛЕБ РЖАНОЙ | F152: 25 | H152: 1.250 | I152: 0.250 | J152: 11.250 | L152: 52
A153: Итого: | F153: 545 | H153: =H152+H151+H150+H149+H148 -> 15.459 | I153: =I152+I151+I150+I149+I148 -> 15.706 | J153: =J152+J151+J150+J149+J148 -> 81.925 | L153: =L152+L151+L150+L149+L148 -> 531
A154: ОБЕД
A155: № 338 Дели 2015 г | B155: ФРУКТ (Груша) | F155: 120 | H155: 0.480 | I155: 0.480 | J155: 26.740 | L155: 113
A156: № 49 Сбор.2004г | B156: САЛАТ ИЗ МОРКОВИ С ЯБЛОКАМИ (без сахара) | F156: 60 | H156: 0.594 | I156: 0.084 | J156: 5.272 | L156: 24
A157: №98/2015г,Дели | B157: СУП КРЕСТЬЯНСКИЙ С КРУПОЙ | F157: 200г | H157: 1.885 | I157: 1.908 | J157: 10.320 | L157: 66
A158: № 371 Сбор.2004г | B158: ГОРБУША ПРИПУЩЕННАЯ (ФИЛЕ) | F158: 90 | H158: 15.364 | I158: 16.157 | J158: 0.295 | L158: 208
A159: №139/2015г,Дели | B159: КАПУСТА ТУШЕНАЯ | F159: 75 | H159: 1.785 | I159: 1.907 | J159: 12.040 | L159: 72
A160: № 216 Сбор.2004 | B160: КАРТОФЕЛЬ ТУШЁНЫЙ | F160: 75 | H160: 1.627 | I160: 1.530 | J160: 12.235 | L160: 69
A161: № 705 Сбор. рецеп. 2004 г | B161: НАПИТОК ИЗ ШИПОВНИКА без сахара | F161: 200 | H161: 0.210 | I161: 0.050 | J161: 15.020 | L161: 61
B162: ХЛЕБ РЖАНОЙ | F162: 40 | H162: 2.000 | I162: 0.400 | J162: 18.000 | L162: 84
A163: Итого: | F163: 860 | H163: =H155+H156+H157+H158+H159+H160+H161+H162 -> 23.945 | I163: =I155+I156+I157+I158+I159+I160+I161+I162 -> 22.516 | J163: =J155+J156+J157+J158+J159+J160+J161+J162 -> 99.922 | L163: =L155+L156+L157+L158+L159+L160+L161+L162 -> 697
A164: Всего: | F164: 1405 | H164: =H163+H153 -> 39.404 | I164: =I163+I153 -> 38.222 | J164: =J163+J153 -> 181.847 | L164: =L163+L153 -> 1228
A165: 4 ДЕНЬ
A166: ЗАВТРАК
A167: № 338 Дели 2015 г | B167: ФРУКТ(апельсин) | F167: 120 | H167: 0.480 | I167: 0.480 | J167: 11.760 | L167: 53
A168: № 14/2015 г Дели | B168: МАСЛО СЛИВОЧНОЕ (ПОРЦИЯМИ) | F168: 10 | H168: 7.300 | I168: 7.550 | J168: 0.080 | L168: 97
A169: №173/2015г,Дели | B169: КАША ВЯЗКАЯ МОЛОЧНАЯ ИЗ ГРЕЧНЕВОЙ КРУПЫ С МАСЛОМ (без сахара) | F169: 150/5 | H169: 5.953 | I169: 7.613 | J169: 42.781 | L169: 263
A170: №376/2015г,Дели | B170: ЧАЙ без сахара | F170: 200 | H170: 0.100 | I170: 0.250 | J170: 0.020 | L170: 3
B171: ХЛЕБ РЖАНОЙ | F171: 25 | H171: 1.250 | I171: 0.250 | J171: 11.250 | L171: 52
A172: Итого: | F172: 510 | H172: =H171+H170+H169+H168+H167 -> 15.083 | I172: =I171+I170+I169+I168+I167 -> 16.143 | J172: =J171+J170+J169+J168+J167 -> 65.891 | L172: =L171+L170+L169+L168+L167 -> 468
A173: ОБЕД
A174: №45/2015г,Дели | B174: САЛАТ ИЗ БЕЛОКОЧАННОЙ КАПУСТЫ (капуста,морковь,без сахара,м/раст) | F174: 60 | H174: 0.931 | I174: 3.051 | J174: 9.105 | L174: 68
A175: №99/2015г,Дели | B175: СУП ИЗ ОВОЩЕЙ С МЯСНЫМИ ФРИКАДЕЛЬКАМИ | F175: 200 /10 | H175: 2.970 | I175: 3.763 | J175: 20.848 | L175: 126
A176: Рец.№265 Сбор.2015г Дели | B176: ПЛОВ ИЗ ГОВЯДИНЫ | F176: 50/150 | H176: 18.755 | I176: 19.670 | J176: 20.095 | L176: 332
A177: №348/2015г,Дели | B177: КОМПОТ ИЗ УРЮКА | F177: 200 | H177: 0.440 | I177: 0.020 | J177: 31.760 | L177: 129
B178: ХЛЕБ РЖАНОЙ | F178: 40 | H178: 2.000 | I178: 0.400 | J178: 18.000 | L178: 84
A179: Итого: | F179: 710 | H179: =H178+H177+H176+H175+H174 -> 25.096 | I179: =I178+I177+I176+I175+I174 -> 26.904 | J179: =J178+J177+J176+J175+J174 -> 99.808 | L179: =L178+L177+L176+L175+L174 -> 739
B180: Всего: | F180: 1220 | H180: =H179+H172 -> 40.179 | I180: =I179+I172 -> 43.047 | J180: =J179+J172 -> 165.699 | L180: =L179+L172 -> 1207
A181: 5 ДЕНЬ
A182: ЗАТВРАК
A183: № 338 Дели 2015 г | B183: ФРУКТ(мандарин) | F183: 120 | H183: 0.480 | I183: 0.480 | J183: 11.760 | L183: 53
A184: 15/2015г Дели | B184: СЫР ПОРЦИЯМИ | F184: 10 | H184: 6.330 | I184: 6.266 | J184: 0.4 | L184: 83
A185: №173/2015г,Дели | B185: КАША ВЯЗКАЯ МОЛОЧНАЯ ИЗ ПШЁННОЙ КРУПЫ С МАСЛОМ (без сахара) | F185: 150/5 | H185: 6.703 | I185: 8.788 | J185: 33.069 | L185: 238
A186: №377/2015г,Дели | B186: ЧАЙ С ЛИМОНОМ без сахара | F186: 200 | H186: 0.320 | I186: 0.140 | J186: 24.440 | L186: 100
B187: ХЛЕБ РЖАНОЙ | F187: 25 | H187: 1.250 | I187: 0.250 | J187: 11.250 | L187: 52
A188: Итого: | F188: 510 | H188: =H187+H186+H185+H184+H183 -> 15.083 | I188: =I187+I186+I185+I184+I183 -> 15.924 | J188: =J186+J187+J185+J184+J183 -> 80.919 | L188: =L187+L186+L185+L184+L183 -> 526
A189: ОБЕД
A190: № 338 Дели 2015 г | B190: ФРУКТ (яблоко красное) | F190: 120 | H190: 0.480 | I190: 0.480 | J190: 11.760 | L190: 53
A191: № 62/ Дели 2015 г | B191: САЛАТ ИЗ МОРКОВИ (без сахара) | F191: 60 | H191: 0.863 | I191: 3.051 | J191: 9.105 | L191: 68
A192: №88/2015г,Дели | B192: ЩИ ИЗ СВЕЖЕЙ КАПУСТЫ С КАРТОФЕЛЕМ СО СМЕТАНОЙ | F192: 200/5 | H192: 1.950 | I192: 2.950 | J192: 9.120 | L192: 71
A193: №288/2015г,Дели | B193: ПТИЦА ОТВАРНАЯ | F193: 90 | H193: 14.397 | I193: 14.554 | J193: 6.580 | L193: 214
A194: № 510/2015г,Дели | B194: КАША ПЕРЛОВАЯ ВЯЗКАЯ С МАСЛОМ | F194: 150/5 | H194: 3.086 | I194: 2.787 | J194: 21.691 | L194: 124
A195: № 631 Сбор. рецеп. 2004 г | B195: КОМПОТ ИЗ СУХОФРУКТОВ | F195: 200 | H195: 0.210 | I195: 0.050 | J195: 15.020 | L195: 61
B196: ХЛЕБ РЖАНОЙ | F196: 40 | H196: 2.000 | I196: 0.400 | J196: 18.000 | L196: 84
A197: Итого: | F197: 865 | H197: =H190+H191+H192+H193+H194+H195+H196 -> 22.986 | I197: =I190+I191+I192+I193+I194+I195+I196 -> 24.272 | J197: 95.600 | L197: 745
B198: Всего: | F198: 1375 | H198: =H197+H188 -> 38.069 | I198: =I197+I188 -> 40.196 | J198: =J197+J188 -> 176.519 | L198: =L197+L188 -> 1271
A199: 6 ДЕНЬ
A200: ЗАВТРАК
A201: № 338 Дели 2015 г | B201: ФРУКТ (Груша) | F201: 120 | H201: 0.480 | I201: 0.480 | J201: 11.760 | L201: 53
... 15 more rows
